[Event "34th MPL National U14-ch 2022"]
[Site "Ahmedabad"]
[Date "2022.05.09"]
[Round "2.1"]
[White "Raihaan Zahid"]
[Black "Kadam Om Manish"]
[Result "0-1"]
[ECO "A11"]
[WhiteElo "1457"]
[BlackElo "2144"]
[Annotator "TA"]
[PlyCount "80"]
[EventDate "2022.05.09"]
[EventType "swiss"]
[EventCountry "IND"]
[SourceTitle "playchess.com"]
[Source "ChessBase"]
[SourceQuality "1"]
[TimeControl "5400+30"]

{[%evp 16,80,23,18,33,18,36,24,4,-18,-18,-22,-17,-30,-12,-13,-7,-41,-13,-37,-36,-42,-10,-21,1,-5,-12,-129,-124,-110,-122,-120,-117,-129,-135,-116,-135,-172,-178,-275,-275,-583,-504,-560,-578,-574,-572,-568,-547,-545,-533,-543,-568,-601,-606,-752,-735,-814,-824,-763,-670,-816,-766,-1088,-1035,-29975,-1043]} 1. c4 {[%emt 0:00:54]} c6 {[%emt 0:00:22]} 2. g3 {[%emt 0:04:09]} Nf6 {[%emt 1:31:08]} 3. Bg2 {[%emt 0:00:26]} d5 {[%emt 0:00:00]} 4. b3 {[%emt 0:01:16]} g6 {[%emt 0:00:00]} 5. Bb2 {[%emt 0:06:06]} Bg7 {[%emt 0:00:00]} 6. Nf3 {[%emt 0:01:58]} O-O {[%emt 0:00:00]} 7. O-O {[%emt 0:05:59]} Bg4 {[%emt 0:00:00]} 8. d3 {[%emt 0:08:43]} Bxf3 {[%emt 0:00:00]} 9. Bxf3 {[%emt 0:00:44]} d4 {[%emt 0:00:00] A11: English Opening: 1...c6.} 10. Nd2 {[%emt 0:01:04] [#]} e5 $146 {[%emt 0:00:00]} ({Predecessor:} 10... Nfd7 11. b4 Qc7 12. Nb3 e5 13. a4 Nf6 14. a5 a6 15. Ba3 Nbd7 16. Nd2 Rfe8 17. Qa4 {1-0 (85) Krivonosov,O (2391)-Jablokov,D (1962) Panevezys 2020}) 11. Ba3 {[%emt 0:02:05]} Re8 {[%emt 0:00:00] White has an edge.} 12. Qc2 {[%emt 0:10:29]} a5 {[%emt 0:00:00]} 13. Bb2 {[%emt 0:12:12]} Na6 {[%emt 0:00:00]} 14. a3 {[%emt 0:02:45]} Bh6 {[%emt 0:00:00]} 15. Rab1 {[%emt 0:14:12]} Nd7 {[%emt 0:00:00]} 16. Bc1 {[%emt 0:01:28]} Bf8 {[%emt 0:00:00]} 17. e4 {[%emt 0:05:37]} dxe3 {[%emt 0:00:00]} 18. fxe3 {[%emt 0:00:09]} Bh6 {[%emt 0:00:00]} 19. Ne4 {[%emt 0:02:37]} Qe7 {[%emt 0:00:00] Prevents b4.} 20. d4 {[%emt 0:05:15]} f5 {[%emt 0:00:00]} 21. Nc3 {[%emt 0:01:13] Black converts the advantage convincingly.} (21. Nf2 $1 $11) 21... exd4 $17 {[%emt 0:00:00]} 22. exd4 {[%emt 0:00:05]} Be3+ {[%emt 0:00:00]} 23. Bxe3 {[%emt 0:00:23]} Qxe3+ {[%emt 0:00:00]} 24. Rf2 {[%emt 0:00:35]} Qxd4 {[%emt 0:00:00] aiming for ...Re3.} 25. Rd1 {[%emt 0:00:34]} Qg7 {[%emt 0:00:00]} 26. Rfd2 {[%emt 0:00:34]} Ne5 {[%emt 0:00:00]} 27. Bg2 {[%emt 0:00:40]} (27. Be2 $142) 27... Ng4 $19 {[%emt 0:00:00] [#] White must now prevent ...Ne3. Pair of Knights!} ({Inferior is} 27... Qh6 28. Re2 $17) 28. Rd7 $2 {[%emt 0:01:17]} (28. Qb2 {is more resistant.}) 28... Qh6 {[%emt 0:00:00]} 29. Bf3 {[%emt 0:02:42]} Qe3+ {[%emt 0:00:00]} 30. Kg2 {[%emt 0:00:19]} Ne5 {[%emt 0:00:00][%csl LRd7,LRf3]} 31. R7d3 {[%emt 0:05:21]} Nxd3 {[%emt 0:00:00]} 32. Rxd3 {[%emt 0:00:08]} Qe5 {[%emt 0:00:00]} 33. Rd7 {[%emt 0:00:38]} Nc5 {[%emt 0:00:00]} 34. Rd2 {[%emt 0:01:13]} Rad8 {[%emt 0:00:00]} 35. Re2 {[%emt 0:00:05]} Qd4 {[%emt 0:00:00] [#] Hoping for ...Nd3.} 36. Rxe8+ {[%emt 0:00:24]} Rxe8 {[%emt 0:00:00]} 37. Ne2 {[%emt 0:00:23]} Qd3 {[%emt 0:00:00]} 38. Qb2 {[%emt 0:00:18]} Qxb3 {[%emt 0:00:00]} 39. Qd4 {[%emt 0:00:14]} Qe3 {[%emt 0:00:00]} 40. Qf6 {[%emt 0:00:30]} Ne4 {[%emt 0:00:00] Weighted Error Value: White=0.62/Black=0.12 (very precise)} (40... Nd3 $142 41. Qd4 Ne1+ 42. Kf1 Qxf3+ 43. Qf2 Qh1+ 44. Ng1 Nd3 45. Qd2 Re1+ 46. Qxe1 Nxe1 47. Kxe1 Qxg1+ 48. Ke2 Qxh2+ 49. Ke3 Qxg3+ 50. Kd2 f4 51. Kc2 f3 52. Kd2 Qf4+ 53. Ke1 Qe3+ 54. Kd1 Qe2+ 55. Kc1 f2 56. c5 f1=Q#) 0-1

[Event "34th MPL National U14-ch 2022"]
[Site "Ahmedabad"]
[Date "2022.05.09"]
[Round "2.2"]
[White "Md Imran"]
[Black "Borkar, Yashwant"]
[Result "1-0"]
[ECO "A29"]
[WhiteElo "2122"]
[BlackElo "1528"]
[Annotator "TA"]
[PlyCount "69"]
[EventDate "2022.05.09"]
[EventType "swiss"]
[EventCountry "IND"]
[SourceTitle "playchess.com"]
[Source "ChessBase"]
[SourceQuality "1"]
[TimeControl "5400+30"]

{[%evp 18,69,19,0,7,14,12,0,14,-14,-4,-10,19,17,17,10,32,27,45,65,109,113,114,102,113,111,111,102,144,136,143,141,150,141,150,143,152,141,143,110,139,110,199,200,29974,29975,29995,29996,29996,158,29997,29998,29998,29999]} 1. c4 {[%emt 0:00:02]} e5 {[%emt 0:00:15]} 2. Nc3 {[%emt 0:00:18]} Nf6 {[%emt 0:00:17]} 3. g3 {[%emt 0:00:11]} d5 {[%emt 0:05:02]} 4. cxd5 {[%emt 0:00:06]} Nxd5 {[%emt 0:00:30]} 5. Bg2 {[%emt 0:00:02]} Nb6 {[%emt 0:01:09]} 6. Nf3 {[%emt 0:00:03]} Nc6 {[%emt 0:00:57]} 7. O-O {[%emt 0:00:03]} Be7 {[%emt 0:02:02]} 8. d3 {[%emt 0:00:47]} Be6 {[%emt 0:02:23]} 9. Be3 {[%emt 0:01:43]} O-O {[%emt 0:06:30]} 10. a3 {[%emt 0:00:59]} Nd5 {[%emt 0:08:01] A29: English Opening: Four Knights Variation with 4 g3.} 11. Nxd5 {[%emt 0:00:29]} Bxd5 {[%emt 0:00:18]} 12. Rc1 {[%emt 0:00:08]} Qd7 {[%emt 0:02:52] The position is equal.} 13. b4 {[%emt 0:00:35]} a6 {[%emt 0:00:39] [#]} 14. d4 $146 {[%emt 0:04:04]} (14. Bc5 {keeps more tension.} Rfe8 15. Nd2 Bxg2 16. Kxg2 Qd5+ 17. Nf3) ({Predecessor:} 14. Bc5 Rfe8 15. Qc2 Rad8 16. Rfd1 Bf6 17. e4 Be6 18. Qc3 Bg4 19. a4 Rc8 20. b5 axb5 21. axb5 {½-½ (47) Eljanov,P (2672)-Gumularz,S (2517) Tornelo INT 2021}) 14... exd4 {[%emt 0:07:29]} (14... e4 {is more complex.} 15. Ne5 Qe6 16. Nxc6 Bxc6 17. Bf4 a5) 15. Nxd4 {[%emt 0:00:39] [#] aiming for Bxd5.} Bxg2 {[%emt 0:00:27]} 16. Kxg2 {[%emt 0:00:37] Strongly threatening Nxc6.} Nxd4 {[%emt 0:05:36]} 17. Qxd4 {[%emt 0:00:57]} Rfd8 {[%emt 0:01:17]} 18. Qe4 {[%emt 0:00:26]} Bd6 {[%emt 0:06:46]} 19. Qxb7 {[%emt 0:03:11]} Qa4 {[%emt 0:03:17]} 20. Bg5 {[%emt 0:06:42]} Rdb8 {[%emt 0:00:36]} 21. Qf3 {[%emt 0:00:13] White is much more active.} a5 {[%emt 0:00:50]} 22. Bf4 {[%emt 0:04:52]} axb4 {[%emt 0:04:22]} 23. Bxd6 {[%emt 0:01:04]} cxd6 {[%emt 0:03:38]} 24. axb4 {[%emt 0:00:41]} Qd7 {[%emt 0:03:00] Inhibits Rc7.} 25. Rfd1 $40 {[%emt 0:00:31][%cal Bf1d1,Bd1d4,Bd4e4,Be4e8][%mdl 160] White attacks with force.} Ra6 {[%emt 0:02:36]} 26. Rd4 {[%emt 0:01:27]} Rab6 {[%emt 0:00:54]} 27. Qf4 {[%emt 0:01:21]} h6 {[%emt 0:00:33]} 28. f3 {[%emt 0:00:52]} Qe6 {[%emt 0:01:32]} 29. Re4 {[%emt 0:00:19]} Qb3 {[%emt 0:02:29]} (29... Qd7 $16 30. Rd4 Qe7) 30. Rc7 $18 {[%emt 0:00:16] Rec4 is the strong threat.} R6b7 $2 {[%emt 0:00:59] [#]} (30... Qd5 $18 31. Rd7 R6b7 32. Rxd6 Qg5) 31. Rxb7 {[%emt 0:00:13]} Rxb7 {[%emt 0:04:07]} 32. Re8+ {[%emt 0:00:12]} Kh7 {[%emt 0:00:19]} 33. Qf5+ {[%emt 0:00:21]} g6 {[%emt 0:00:35]} 34. Qf6 {[%emt 0:00:01][%csl Gf6][%cal Re8h8]} Qxf3+ {[%emt 0:00:34]} 35. exf3 {[%emt 0:00:11] Weighted Error Value: White=0.07 (flawless) /Black=0.50} 1-0

[Event "34th MPL National U14-ch 2022"]
[Site "Ahmedabad"]
[Date "2022.05.09"]
[Round "2.3"]
[White "Agnivo Chakraborty"]
[Black "Ilamparthi A R"]
[Result "0-1"]
[ECO "B90"]
[WhiteElo "1434"]
[BlackElo "2121"]
[Annotator "TA"]
[PlyCount "116"]
[EventDate "2022.05.09"]
[EventType "swiss"]
[EventCountry "IND"]
[SourceTitle "playchess.com"]
[Source "ChessBase"]
[SourceQuality "1"]
[TimeControl "5400+30"]

{[%evp 14,116,49,45,68,-4,11,-73,-39,-40,-47,-50,-45,-45,-25,-25,-25,-25,-25,-28,-19,-31,-35,-34,-27,-34,-28,-34,-32,-40,0,-45,-45,-55,-54,-54,-49,-54,34,0,39,45,55,4,89,87,108,107,106,95,151,150,140,0,0,-167,-166,-167,-167,-237,-231,-316,-316,-316,-315,-315,-149,-428,-428,-418,-285,-569,-557,-541,-511,-894,-830,-1727,-1516,-2774,-1741,-29964,-29966,-29964,-29965,-29962,-29966,-29974,-29976,-29971,-29968,-29983,-29984,-29984,-29985,-29985,-29986,-29986,-29987,-29987,-29988,-29990,-29987,-29991,-29992]} 1. e4 {[%emt 0:00:06]} c5 {[%emt 0:00:04]} 2. Nf3 {[%emt 0:00:07]} d6 {[%emt 0:00:05]} 3. d4 {[%emt 0:00:07]} cxd4 {[%emt 0:00:04]} 4. Nxd4 {[%emt 1:32:10]} Nf6 {[%emt 1:32:17]} 5. Nc3 {[%emt 0:00:00]} a6 {[%emt 0:00:00]} 6. Bc4 {[%emt 0:00:00]} b5 {[%emt 0:00:00]} 7. Bb3 {[%emt 0:00:00]} Bb7 {[%emt 0:00:00]} 8. O-O {[%emt 0:00:00] 8.0-0 scores better than 8.f3.} Nbd7 {[%emt 0:00:00] [#] B90: Sicilian Najdorf: Unusual White 6th moves, 6 Be3 Ng4 and 6 Be3 e5.} 9. Nf5 $146 {[%emt 0:00:00]} (9. Re1 $14) ({Predecessor:} 9. Bg5 e6 10. Re1 h6 11. Bxf6 Nxf6 12. Qd3 Nd7 13. Qh3 Nc5 14. Bd5 exd5 15. exd5+ Be7 16. Nf5 Bc8 17. Nxe7 Bxh3 18. Nc6+ Kd7 19. Nxd8 Rhxd8 20. gxh3 {0-1 (41) Grandelius,N (2642)-Jobava,B (2698) Sweden 2016}) 9... Nc5 $11 {[%emt 0:00:00]} 10. Qe2 {[%emt 0:00:00]} (10. Bd5 $11 {remains equal.}) 10... e6 {[%emt 0:00:00] Black is better.} 11. e5 {[%emt 0:00:00]} dxe5 {[%emt 0:00:00]} 12. Qxe5 {[%emt 0:00:00]} Nxb3 {[%emt 0:00:00]} 13. axb3 {[%emt 0:00:00]} b4 {[%emt 0:00:00]} 14. Ne2 {[%emt 0:00:00]} Qd5 {[%emt 0:00:00]} 15. Qxd5 {[%emt 0:00:00]} Nxd5 {[%emt 0:00:00]} 16. Ne3 {[%emt 0:00:00]} Bc5 {[%emt 0:00:00]} 17. Nxd5 {[%emt 0:00:00]} Bxd5 {[%emt 0:00:00]} 18. Re1 {[%emt 0:00:00]} O-O {[%emt 0:00:00]} 19. Nf4 {[%emt 0:00:00]} Bb7 {[%emt 0:00:00]} 20. Be3 {[%emt 0:00:00]} Be7 {[%emt 0:00:00]} 21. c4 {[%emt 0:08:30]} Rfd8 {[%emt 0:00:00]} 22. Red1 {[%emt 0:00:00]} (22. Bb6 $5 {[%cal Rb6d8]}) 22... Be4 {[%emt 0:00:00] A strong pair of Bishops.} 23. Rxd8+ {[%emt 0:00:00]} Rxd8 {[%emt 0:00:00]} 24. f3 {[%emt 0:00:00]} Bb7 {[%emt 0:00:00]} 25. Kf2 {[%emt 0:00:00]} Bf6 {[%emt 0:00:00]} (25... g5 $1 $15 26. Nh5 f5) 26. Ra4 {[%emt 0:00:00]} Bxb2 {[%emt 0:00:00]} (26... e5 $5 {[%cal Re5f4]} 27. Nd5 Bxd5 28. cxd5 Rxd5 $11) 27. Rxb4 {[%emt 0:00:00]} Rd7 {[%emt 0:00:00]} 28. c5 {[%emt 0:00:00]} (28. Ke2 $14) 28... h6 {[%emt 0:03:42]} (28... Bf6 $11) 29. Rb6 $16 {[%emt 0:00:00] Threatens to win with c6.} Rc7 {[%emt 0:01:12] Inhibits c6.} 30. Nd3 {[%emt 0:00:00]} Bc3 {[%emt 0:01:34]} 31. Bf4 {[%emt 0:00:00]} Re7 {[%emt 0:01:46]} (31... e5 $142 32. Bxe5 Bxe5) 32. Bd6 {[%emt 0:00:00]} Rd7 {[%emt 0:00:05]} 33. Ne5 {[%emt 0:01:13]} (33. b4 $16) 33... Rxd6 $11 {[%emt 0:00:57]} 34. Rxd6 {[%emt 0:01:08]} (34. Rxb7 $11 {and White stays safe.} Bd4+ 35. Ke2 Bxc5 36. Rb8+ Kh7 37. Nxf7) 34... Bxe5 $19 {[%emt 0:00:04]} 35. Rb6 {[%emt 0:00:13]} Bd5 {[%emt 0:00:22]} 36. Ke3 {[%emt 0:00:32]} (36. b4 {was necessary.}) 36... Bxh2 {[%emt 0:01:02] [#] aiming for ...Bg1+.} 37. Kf2 {[%emt 0:01:15] Prevents Bg1+. Hoping for g3.} Be5 {[%emt 0:00:38] White must now prevent ...Bd4+.} 38. Ke3 {[%emt 0:00:17]} a5 {[%emt 0:00:27]} 39. Ra6 {[%emt 0:00:40]} Bxb3 {[%emt 0:00:30]} (39... g5 $19 {and Black stays clearly on top.} 40. Rxa5 Bxb3) 40. Rxa5 $2 {[%emt 0:00:06][%mdl 8192] White does not recover from this.} (40. f4 $17 Bb2 41. Rd6) 40... Bd5 {[%emt 0:00:38]} 41. c6 {[%emt 0:01:37]} Kf8 {[%emt 0:01:21]} 42. f4 $2 {[%emt 0:00:34]} (42. Ra8+ {only move.} Ke7 43. Ra7+ Kd8 44. Rxf7) 42... Bc7 {[%emt 0:00:12]} 43. Ra8+ {[%emt 0:00:05]} Ke7 {[%emt 0:00:06]} 44. Ra7 {[%emt 0:00:17]} (44. g3 $142) 44... Kd6 {[%emt 0:00:06] [#] ( -> ...Bb6+)} 45. Ra6 {[%emt 0:00:10] Prevents Bb6+.} Bxg2 {[%emt 0:00:06]} 46. Ra2 {[%emt 0:00:14]} Bxc6 {[%emt 0:00:07]} 47. Rd2+ {[%emt 0:00:09]} Ke7 {[%emt 0:00:08] Black mates.} 48. Rc2 {[%emt 0:00:08]} Bb6+ {[%emt 0:00:03]} 49. Kd3 {[%emt 0:00:08]} Bd5 {[%emt 0:00:06]} 50. Rb2 {[%emt 0:00:08]} Bc7 {[%emt 0:00:04]} 51. Ke3 {[%emt 0:00:09]} g5 {[%emt 0:00:05]} 52. fxg5 {[%emt 0:00:05]} hxg5 {[%emt 0:00:04][%cal Bh6g5,Bg5g4,Bg4g3][%mdl 32]} 53. Rb4 {[%emt 0:00:11]} f5 {[%emt 0:00:06]} 54. Ra4 {[%emt 0:00:05]} g4 {[%emt 0:00:04]} 55. Ra7 {[%emt 0:00:07]} Kd7 {[%emt 0:00:06]} 56. Kf2 {[%emt 0:00:08]} g3+ {[%emt 0:00:04]} 57. Kg1 {[%emt 0:00:09]} Kc6 {[%emt 0:00:03]} 58. Ra6+ {[%emt 0:00:14]} Bb6+ {[%emt 0:00:06] Weighted Error Value: White=0.80/Black=0.21 (precise)} 0-1

[Event "34th MPL National U14-ch 2022"]
[Site "Ahmedabad"]
[Date "2022.05.09"]
[Round "2.4"]
[White "Daakshin Arun"]
[Black "Dev Raj"]
[Result "1-0"]
[ECO "D35"]
[WhiteElo "2016"]
[BlackElo "1432"]
[Annotator "TA"]
[PlyCount "67"]
[EventDate "2022.05.09"]
[EventType "swiss"]
[EventCountry "IND"]
[SourceTitle "playchess.com"]
[Source "ChessBase"]
[SourceQuality "1"]
[TimeControl "5400+30"]

{[%evp 18,67,36,25,49,39,35,16,15,17,18,13,2,-33,0,-37,-21,-83,-90,-67,0,0,33,46,52,41,122,127,141,61,72,74,119,113,119,72,63,74,82,82,84,77,111,111,125,100,100,78,78,78,6503,6495]} 1. d4 {[%emt 0:00:03]} Nf6 {[%emt 0:01:10]} 2. c4 {[%emt 0:00:08]} e6 {[%emt 0:00:27]} 3. Nf3 {[%emt 0:00:06]} d5 {[%emt 0:00:42]} 4. Nc3 {[%emt 0:00:05]} Be7 {[%emt 0:03:01]} 5. cxd5 {[%emt 0:00:06]} exd5 {[%emt 0:02:05]} 6. Bf4 {[%emt 0:00:07]} O-O {[%emt 0:00:55]} 7. e3 {[%emt 0:00:06]} c6 {[%emt 0:02:00]} 8. Bd3 {[%emt 0:01:32]} Nbd7 {[%emt 0:07:13] 8...Bg4 is the fancy move.} 9. O-O {[%emt 0:00:25]} Re8 {[%emt 0:05:20]} 10. h3 {[%emt 0:02:57]} Nf8 {[%emt 0:01:58] D35: Queen's Gambit Declined: Exchange Variation.} 11. Rb1 {[%emt 0:02:13]} Bd6 {[%emt 0:06:17]} 12. Ne5 {[%emt 0:02:44]} Ng6 {[%emt 0:03:07] The position is equal.} 13. Nxg6 {[%emt 0:01:51]} hxg6 {[%emt 0:00:57] [#]} 14. Bxd6 $146 {[%emt 0:01:00]} ({Predecessor:} 14. Qf3 Qc7 15. Bxd6 Qxd6 16. b4 g5 17. g4 g6 18. Kg2 Kg7 19. b5 Rh8 20. Qg3 Qxg3+ 21. Kxg3 {1-0 (50) Rombaldoni,D (2484)-Saccona,S (2230) Torino 2010}) 14... Qxd6 {[%emt 0:00:03]} 15. Qc2 {[%emt 0:03:48]} Bd7 {[%emt 0:04:15]} (15... g5 $5 {[%cal Rg5g4]}) 16. Na4 {[%emt 0:01:49]} b6 {[%emt 0:00:55]} (16... g5 $5 {[%cal Rg5g4]}) 17. Rfc1 {[%emt 0:02:32]} (17. Rfe1 $11) 17... g5 $17 {[%emt 0:10:09]} 18. Bf5 {[%emt 0:10:38]} Bxf5 {[%emt 0:04:09]} ({Black should try} 18... g4 $15) 19. Qxf5 $11 {[%emt 0:00:04]} Ne4 {[%emt 0:00:06][%cal Bf6e4,Be4d2,Bd2c4][%mdl 32]} 20. Nc3 {[%emt 0:01:14]} Nd2 {[%emt 0:06:00]} 21. Ra1 {[%emt 1:07:32]} Re6 {[%emt 0:03:01]} (21... f6 $14) 22. Rc2 $16 {[%emt 0:00:00]} ({Not} 22. Qxg5 Nf3+ $1 {[%mdl 512]} 23. gxf3 Rg6 24. Qxg6 Qxg6+ 25. Kh2 Qf5 $17) 22... Rf6 {[%emt 0:08:54]} 23. Qd3 {[%emt 0:00:00]} ({Weaker is} 23. Qxg5 {[#]} Nf3+ $1 {[%mdl 512]} 24. gxf3 Rg6 $17) (23. Qe5 $16 Nc4 24. Qxg5) 23... Nc4 $14 {[%emt 0:03:20][%cal Og5g4]} 24. e4 {[%emt 0:00:00] Black must now prevent b3.} Rh6 {[%emt 0:10:02][%cal Og5g4]} 25. exd5 {[%emt 0:00:00]} cxd5 {[%emt 0:00:41][%cal Og5g4] [#]} 26. Nxd5 $1 {[%emt 0:00:00][%mdl 512]} Qxd5 {[%emt 0:02:37]} 27. Qxc4 {[%emt 0:00:00]} Qd6 {[%emt 0:00:11][%cal Og5g4]} 28. d5 {[%emt 0:00:00]} Rd8 {[%emt 0:01:48]} 29. Rd1 {[%emt 0:00:00]} Kf8 {[%emt 0:13:37]} 30. Re2 {[%emt 0:00:00]} Rf6 {[%emt 0:00:00]} 31. Rde1 {[%emt 0:00:00] White is more active.} Rf5 {[%emt 0:00:13]} 32. Qe4 {[%emt 0:00:00] Intending Qe8+ and mate.} g6 {[%emt 0:00:25]} 33. Qd4 {[%emt 0:00:00][%cal Rd4h8]} Kg8 {[%emt 0:00:50][%mdl 8192] Against Qh8+} (33... Qf6 $16 34. Qxf6 Rxf6) 34. Re8+ {[%emt 0:00:00] Weighted Error Value: White=0.17 (very precise) /Black=0.18 (very precise)} 1-0

[Event "34th MPL National U14-ch 2022"]
[Site "Ahmedabad"]
[Date "2022.05.09"]
[Round "2.5"]
[White "Vandan Alankar Sawai"]
[Black "Mayank Chakraborty"]
[Result "0-1"]
[ECO "B33"]
[WhiteElo "1428"]
[BlackElo "2015"]
[Annotator "TA"]
[PlyCount "90"]
[EventDate "2022.05.09"]
[EventType "swiss"]
[EventCountry "IND"]
[SourceTitle "playchess.com"]
[Source "ChessBase"]
[SourceQuality "1"]
[TimeControl "5400+30"]

{[%evp 16,90,7,-2,0,0,0,0,0,-27,-12,0,8,5,30,28,53,41,99,103,142,138,138,147,146,51,46,0,0,0,0,0,0,0,0,0,0,0,0,0,0,0,0,0,0,0,0,-45,-45,-424,-421,-421,-408,-408,-401,-495,-487,-493,-502,-400,-381,-1303,-1336,-935,-866,-748,-568,-844,-750,-956,-781,-1343,-1275,-29984,-29985,-29984,-29985]} 1. e4 {[%emt 0:00:03]} c5 {[%emt 0:01:17]} 2. Nf3 {[%emt 0:00:08][%cal Bg1f3,Bf3d4,Bd4b5][%mdl 32]} Nc6 {[%emt 0:00:07]} 3. d4 {[%emt 0:00:07]} cxd4 {[%emt 0:00:09]} 4. Nxd4 {[%emt 0:00:06]} Nf6 {[%emt 0:00:09]} 5. Nc3 {[%emt 0:00:04]} e5 {[%emt 0:00:08]} 6. Ndb5 {[%emt 0:00:05]} d6 {[%emt 0:00:08]} 7. Nd5 {[%emt 0:00:03]} Nxd5 {[%emt 0:00:08]} 8. exd5 {[%emt 0:00:04]} Nb8 {[%emt 0:00:08]} 9. Qf3 {[%emt 0:00:04]} a6 {[%emt 0:03:56] B33: Sicilian: Pelikan and Sveshnikov Variations.} 10. Qa3 {[%emt 0:00:04]} Be7 {[%emt 0:00:17]} 11. Bg5 {[%emt 0:00:06]} f6 {[%emt 0:05:02] The position is equal.} 12. Bd2 {[%emt 0:00:05]} O-O {[%emt 0:01:24]} 13. Bb4 {[%emt 0:01:21][%cal Rb4d6]} axb5 {[%emt 0:00:23]} 14. Qxa8 {[%emt 0:00:07]} Na6 {[%emt 0:00:02]} 15. Bd2 {[%emt 0:01:08][%cal Bb4d2,Bd2e3,Be3b6][%mdl 32] Strongly threatening Qa7.} Qb6 {[%emt 0:02:13] Prevents Qa7.} 16. Be3 {[%emt 0:01:20]} Qc7 {[%emt 0:00:15]} (16... Qa5+ $1 $14 17. c3 b4) 17. c3 $1 $16 {[%emt 0:03:15]} f5 {[%emt 0:07:50] Hoping for ...f4.} 18. Qa7 $1 {[%emt 0:04:16]} (18. Bxb5 $2 Bd7 19. Qa7 Bxb5 $19) 18... f4 {[%emt 0:03:31] [#]} 19. Bb6 $146 {[%emt 0:00:09]} ({Predecessor:} 19. Bd2 Bd7 20. a4 Nc5 21. axb5 e4 22. Qa5 Qc8 23. Qb4 Qe8 24. Qc4 e3 25. fxe3 fxe3 {½-½ (45) Nouro,M (2330)-Ebeling,D (2279) Helsinki 2012}) 19... Qd7 {[%emt 0:00:05]} 20. a4 {[%emt 0:00:21]} ({Better is} 20. f3 $16) 20... bxa4 $14 {[%emt 0:05:40]} 21. Bxa6 {[%emt 0:00:32]} (21. Bd3 $1 $14) 21... bxa6 $11 {[%emt 0:00:05]} 22. Qxd7 {[%emt 0:00:46]} Bxd7 {[%emt 0:00:04][%cal Bc8d7,Bd7b5,Bb5e2,Be2f3,Bf3d5,Bd5b3][%mdl 32]} 23. Ba5 {[%emt 0:00:06]} Rb8 {[%emt 0:02:29]} 24. Bb4 {[%emt 0:00:06]} a5 {[%emt 0:00:57]} 25. Ba3 {[%emt 0:00:50]} Bb5 {[%emt 0:00:36]} 26. O-O-O {[%emt 0:00:54]} f3 {[%emt 0:03:21]} 27. gxf3 {[%emt 0:01:30][%cal Of3f4]} Be2 {[%emt 0:00:37]} 28. Rde1 {[%emt 0:04:41]} Bxf3 {[%emt 0:00:35]} 29. Rhg1 {[%emt 0:00:04]} Kf7 {[%emt 0:02:28]} (29... Bxd5 30. Bxd6 $1 Bxd6 31. Rd1 $14) 30. Rg3 {[%emt 0:00:47]} ({Much weaker is} 30. c4 Rc8 31. c5 Bf6 $17) 30... Bxd5 {[%emt 0:00:20]} 31. Rd1 {[%emt 0:00:04]} Bb3 {[%emt 0:03:06]} ({But not} 31... Rb5 32. Bxd6 $1 Bf6 33. f4 exf4 34. Bxf4 $14) 32. Bxd6 $2 {[%emt 0:00:24][%mdl 8192] [#]} (32. Rdg1 $15) 32... Rd8 $1 $19 {[%emt 0:00:01]} 33. Rdg1 {[%emt 0:03:57]} Rxd6 {[%emt 0:00:35]} ({Not} 33... Bxd6 $2 34. Rxg7+ Kf6 35. Rxh7 $19) 34. Rxg7+ {[%emt 0:00:06]} Ke6 {[%emt 0:00:24]} 35. Rxh7 {[%emt 0:00:15] [#]} Bg5+ {[%emt 0:00:20][%mdl 512]} 36. Kb1 {[%emt 0:00:05] [#]} Rd2 $1 {[%emt 0:00:38]} 37. Rh5 {[%emt 0:03:24]} (37. Rg7 Bf4) 37... Bf4 {[%emt 0:00:29] A strong pair of Bishops.} 38. h4 $2 {[%emt 0:00:36]} (38. f3) 38... Rxf2 {[%emt 0:01:04]} 39. Rh8 {[%emt 0:00:20]} Kd5 {[%emt 0:05:31]} 40. h5 {[%emt 0:00:19]} Rh2 {[%emt 0:00:18] White must now prevent ...Ke4.} 41. Ra8 {[%emt 0:01:15]} Rxh5 {[%emt 0:00:14]} 42. Rxa5+ {[%emt 0:00:03]} Kc4 {[%emt 0:00:13] And now ...Kd3 would win.} 43. Re1 {[%emt 0:01:15]} Kd3 {[%emt 0:00:14] ( -> ...Kd2)} 44. Ra7 {[%emt 0:00:33]} Kd2 {[%emt 0:00:25]} 45. Rf1 {[%emt 0:00:18]} Ke2 {[%emt 0:00:40] Quite a comeback for Black.  Weighted Error Value: White=0.88/Black=0.19 (very precise)} 0-1